[Event "*** Titled Tuesday Blitz"]
[Site "Chess.com"]
[Date "2018.12.04"]
[Round "4"]
[White "JonahWillow"]
[Black "Yurovskykh_Oleksandr"]
[Result "1-0"]
[WhiteElo "2684"]
[BlackElo "2488"]
[TimeControl "180+2"]
[EndTime "13:52:30 PST"]
[Termination "JonahWillow won by resignation"]

1. e4 {[%clk 0:03:01.9]} 1... c6 {[%clk 0:02:58.3]} 2. d4 {[%clk 0:03:02.5]}
2... d5 {[%clk 0:02:59.5]} 3. e5 {[%clk 0:03:04.2]} 3... Bf5 {[%clk 0:03:00.3]}
4. h4 {[%clk 0:03:05.3]} 4... h6 {[%clk 0:03:00.7]} 5. c4 {[%clk 0:03:06.8]}
5... e6 {[%clk 0:03:00.1]} 6. cxd5 {[%clk 0:03:00.2]} 6... cxd5 {[%clk
0:03:00.2]} 7. Nc3 {[%clk 0:03:00.1]} 7... Ne7 {[%clk 0:02:43.1]} 8. h5 {[%clk
0:02:57.7]} 8... Nec6 {[%clk 0:02:43.3]} 9. g4 {[%clk 0:02:45.8]} 9... Bh7
{[%clk 0:02:44.1]} 10. Nf3 {[%clk 0:02:46.6]} 10... Be7 {[%clk 0:02:40.6]} 11.
Be2 {[%clk 0:02:43.7]} 11... Nd7 {[%clk 0:02:38.7]} 12. a3 {[%clk 0:02:41.5]}
12... f6 {[%clk 0:02:18.9]} 13. exf6 {[%clk 0:02:38.8]} 13... Bxf6 {[%clk
0:02:20.8]} 14. Be3 {[%clk 0:02:36.8]} 14... Nb6 {[%clk 0:02:12.7]} 15. O-O
{[%clk 0:02:34.1]} 15... O-O {[%clk 0:02:11.7]} 16. Bd3 {[%clk 0:02:28.1]} 16...
Bxd3 {[%clk 0:02:11.4]} 17. Qxd3 {[%clk 0:02:30]} 17... Nc4 {[%clk 0:01:56.6]}
18. b3 {[%clk 0:02:30.8]} 18... Nd6 {[%clk 0:01:53]} 19. Rae1 {[%clk 0:02:29.8]}
19... Rc8 {[%clk 0:01:40.3]} 20. Bd2 {[%clk 0:02:04.3]} 20... Re8 {[%clk
0:01:34.9]} 21. Qg6 {[%clk 0:02:03.8]} 21... Qd7 {[%clk 0:01:26.6]} 22. g5
{[%clk 0:01:55.4]} 22... hxg5 {[%clk 0:01:26.2]} 23. Bxg5 {[%clk 0:01:49]} 23...
Qf7 {[%clk 0:01:18.4]} 24. Bxf6 {[%clk 0:01:40.4]} 24... Qxg6+ {[%clk
0:01:11.7]} 25. hxg6 {[%clk 0:01:42.3]} 25... gxf6 {[%clk 0:01:13.3]} 26. Ne2
{[%clk 0:01:30.1]} 26... e5 {[%clk 0:01:00.7]} 27. dxe5 {[%clk 0:01:13.8]} 27...
fxe5 {[%clk 0:01:02.6]} 28. Nh4 {[%clk 0:01:14.9]} 28... Rc7 {[%clk 0:00:48.2]}
29. f4 {[%clk 0:01:11.4]} 29... exf4 {[%clk 0:00:42.1]} 30. Nxf4 {[%clk
0:01:09.6]} 30... Rxe1 {[%clk 0:00:28.8]} 31. Rxe1 {[%clk 0:01:11.5]} 31... Re7
{[%clk 0:00:30.4]} 32. Rd1 {[%clk 0:01:10.1]} 32... d4 {[%clk 0:00:30.5]} 33.
Nf3 {[%clk 0:01:08.4]} 33... Re4 {[%clk 0:00:26.9]} 34. Nh5 {[%clk 0:01:09.7]}
34... Rg4+ {[%clk 0:00:25.6]} 35. Kf1 {[%clk 0:01:04.3]} 35... Rxg6 {[%clk
0:00:26.7]} 36. Nxd4 {[%clk 0:01:02.7]} 36... Nxd4 {[%clk 0:00:24.9]} 37. Rxd4
{[%clk 0:01:04.6]} 37... Kf7 {[%clk 0:00:26]} 38. Ke2 {[%clk 0:01:02.9]} 38...
Rh6 {[%clk 0:00:24.5]} 39. Nf4 {[%clk 0:01:02.5]} 39... Ke7 {[%clk 0:00:23.9]}
40. Kd3 {[%clk 0:01:01.5]} 40... Kd7 {[%clk 0:00:23.7]} 41. a4 {[%clk
0:01:01.8]} 41... Kc6 {[%clk 0:00:22.9]} 42. b4 {[%clk 0:01:03.3]} 42... a6
{[%clk 0:00:23.7]} 43. Kc3 {[%clk 0:01:02.5]} 43... b5 {[%clk 0:00:20.4]} 44. a5
{[%clk 0:01:02.4]} 44... Rh1 {[%clk 0:00:21.5]} 45. Kb2 {[%clk 0:01:00.8]} 45...
Rh2+ {[%clk 0:00:22.3]} 46. Kc3 {[%clk 0:01:00.4]} 46... Nc4 {[%clk 0:00:21.2]}
47. Re4 {[%clk 0:00:58.2]} 47... Ra2 {[%clk 0:00:15]} 48. Re6+ {[%clk
0:00:56.6]} 48... Kb7 {[%clk 0:00:15.6]} 49. Nd3 {[%clk 0:00:55.9]} 49... Ra3+
{[%clk 0:00:11.6]} 50. Kd4 {[%clk 0:00:56.2]} 50... Ka7 {[%clk 0:00:09.1]} 51.
Nc5 {[%clk 0:00:56.1]} 51... Ra1 {[%clk 0:00:06.7]} 52. Rxa6+ {[%clk 0:00:55.2]}
52... Kb8 {[%clk 0:00:08.2]} 53. Rh6 {[%clk 0:00:53.6]} 53... Rd1+ {[%clk
0:00:09.4]} 54. Kc3 {[%clk 0:00:51.6]} 54... Rc1+ {[%clk 0:00:10.7]} 55. Kd4
{[%clk 0:00:53]} 55... Rd1+ {[%clk 0:00:11.7]} 56. Ke4 {[%clk 0:00:53.6]} 56...
Re1+ {[%clk 0:00:12.5]} 57. Kd5 {[%clk 0:00:53.4]} 57... Rb1 {[%clk 0:00:12.5]}
58. Kc6 {[%clk 0:00:52.4]} 58... Ka7 {[%clk 0:00:08.2]} 59. Rh7+ {[%clk
0:00:51.4]} 59... Ka8 {[%clk 0:00:08]} 60. Kxb5 {[%clk 0:00:50.9]} 60... Na3+
{[%clk 0:00:06.9]} 61. Ka4 {[%clk 0:00:48.3]} 61... Nc2 {[%clk 0:00:08.2]} 62.
Rh4 {[%clk 0:00:47.9]} 62... Ka7 {[%clk 0:00:04.6]} 63. Kb5 {[%clk 0:00:48.8]}
63... Na3+ {[%clk 0:00:05.3]} 64. Kc6 {[%clk 0:00:48.9]} 64... Rc1 {[%clk
0:00:03.5]} 65. Rh7+ {[%clk 0:00:49.9]} 65... Ka8 {[%clk 0:00:04.6]} 66. Kb6
{[%clk 0:00:47.5]} 66... Nc4+ {[%clk 0:00:05.5]} 67. Ka6 {[%clk 0:00:47.1]}
67... Kb8 {[%clk 0:00:06.5]} 68. b5 {[%clk 0:00:45.1]} 68... Ra1 {[%clk
0:00:07.4]} 69. Nb3 {[%clk 0:00:43.2]} 69... Ra3 {[%clk 0:00:05.4]} 70. Rh3
{[%clk 0:00:44.8]} 70... Nxa5 {[%clk 0:00:05.7]} 71. Rh8+ {[%clk 0:00:42.6]}
71... Kc7 {[%clk 0:00:06.6]} 72. Nxa5 {[%clk 0:00:44.5]} 72... Ra1 {[%clk
0:00:04.8]} 73. b6+ {[%clk 0:00:44.5]} 73... Kd7 {[%clk 0:00:06.2]} 74. b7
{[%clk 0:00:45.4]} 1-0

[Event "*** Titled Tuesday Blitz"]
[Site "Chess.com"]
[Date "2018.12.04"]
[Round "4"]
[White "c63_amg"]
[Black "Micki-taryan"]
[Result "1/2-1/2"]
[WhiteElo "2622"]
[BlackElo "2894"]
[TimeControl "180+2"]
[EndTime "13:53:02 PST"]
[Termination "Game drawn by repetition"]

1. e4 {[%clk 0:02:59.3]} 1... e5 {[%clk 0:03:00.8]} 2. Nf3 {[%clk 0:02:59.6]}
2... Nc6 {[%clk 0:03:02.7]} 3. d4 {[%clk 0:03:00.3]} 3... exd4 {[%clk
0:03:00.8]} 4. Bc4 {[%clk 0:03:01.7]} 4... Nf6 {[%clk 0:03:02.6]} 5. e5 {[%clk
0:03:02.6]} 5... d5 {[%clk 0:03:04.1]} 6. Bb5 {[%clk 0:03:04.2]} 6... Ne4 {[%clk
0:03:04.1]} 7. Nxd4 {[%clk 0:03:05.5]} 7... Bd7 {[%clk 0:03:05.1]} 8. Bxc6
{[%clk 0:03:06.7]} 8... bxc6 {[%clk 0:03:07]} 9. O-O {[%clk 0:03:07.5]} 9... Be7
{[%clk 0:03:07.6]} 10. f3 {[%clk 0:03:07.9]} 10... Nc5 {[%clk 0:03:07.9]} 11. f4
{[%clk 0:03:07.8]} 11... O-O {[%clk 0:03:05.6]} 12. Nc3 {[%clk 0:02:56.5]} 12...
f5 {[%clk 0:02:56]} 13. Be3 {[%clk 0:02:31.4]} 13... Ne6 {[%clk 0:02:47.4]} 14.
Nxe6 {[%clk 0:02:31.5]} 14... Bxe6 {[%clk 0:02:49.3]} 15. Na4 {[%clk 0:02:32.5]}
15... a5 {[%clk 0:02:48.5]} 16. Bc5 {[%clk 0:02:22.3]} 16... Rb8 {[%clk
0:02:47.3]} 17. c3 {[%clk 0:01:48.2]} 17... Rb5 {[%clk 0:02:47.6]} 18. Qd4
{[%clk 0:01:48]} 18... Re8 {[%clk 0:02:44.5]} 19. b4 {[%clk 0:01:42.7]} 19...
Bc8 {[%clk 0:02:38.4]} 20. Bxe7 {[%clk 0:01:39.1]} 20... Qxe7 {[%clk 0:02:40.3]}
21. Nc5 {[%clk 0:01:40.3]} 21... Rb6 {[%clk 0:02:35.6]} 22. a4 {[%clk
0:01:34.6]} 22... Ba6 {[%clk 0:02:34]} 23. bxa5 {[%clk 0:01:17.6]} 23... Bxf1
{[%clk 0:02:34.7]} 24. axb6 {[%clk 0:01:17.9]} 24... cxb6 {[%clk 0:02:36.6]} 25.
Nb3 {[%clk 0:01:01.1]} 25... Bc4 {[%clk 0:02:35.7]} 26. Qxb6 {[%clk 0:00:59.7]}
26... Qh4 {[%clk 0:02:27.6]} 27. Qxc6 {[%clk 0:00:31.7]} 27... Rb8 {[%clk
0:02:28.1]} 28. Nd2 {[%clk 0:00:31.8]} 28... Qxf4 {[%clk 0:02:19.3]} 29. Nxc4
{[%clk 0:00:31.9]} 29... dxc4 {[%clk 0:02:20.7]} 30. Qd5+ {[%clk 0:00:32.8]}
30... Kh8 {[%clk 0:02:21.5]} 31. Qd4 {[%clk 0:00:27.7]} 31... Qh6 {[%clk
0:02:21.5]} 32. a5 {[%clk 0:00:27.3]} 32... Qa6 {[%clk 0:02:17.1]} 33. Qd6
{[%clk 0:00:25.3]} 33... Qa7+ {[%clk 0:02:16.7]} 34. Qd4 {[%clk 0:00:25.9]}
34... Qa6 {[%clk 0:02:18.1]} 35. h3 {[%clk 0:00:26.1]} 35... h6 {[%clk
0:02:19.3]} 36. Kh2 {[%clk 0:00:27.4]} 36... Rb5 {[%clk 0:02:13.7]} 37. Qd6
{[%clk 0:00:24]} 37... Qa7 {[%clk 0:02:11.5]} 38. Qf8+ {[%clk 0:00:24.1]} 38...
Kh7 {[%clk 0:02:11.9]} 39. Qxf5+ {[%clk 0:00:25.5]} 39... g6 {[%clk 0:02:13.4]}
40. Qe4 {[%clk 0:00:21.7]} 40... Rxa5 {[%clk 0:01:57]} 41. Rxa5 {[%clk
0:00:21.8]} 41... Qxa5 {[%clk 0:01:58.9]} 42. Qb7+ {[%clk 0:00:22.8]} 42... Kh8
{[%clk 0:01:58.8]} 43. Qb8+ {[%clk 0:00:24.1]} 43... Kh7 {[%clk 0:01:59.7]} 44.
e6 {[%clk 0:00:25.5]} 44... Qg5 {[%clk 0:01:55.9]} 45. Qc7+ {[%clk 0:00:24.6]}
45... Kg8 {[%clk 0:01:57.3]} 46. e7 {[%clk 0:00:25.9]} 46... Kf7 {[%clk
0:01:55.1]} 47. Qxc4+ {[%clk 0:00:24.7]} 47... Kxe7 {[%clk 0:01:56.4]} 48. Qc7+
{[%clk 0:00:25.3]} 48... Ke6 {[%clk 0:01:56.5]} 49. c4 {[%clk 0:00:23.3]} 49...
h5 {[%clk 0:01:52.8]} 50. Qc6+ {[%clk 0:00:19.7]} 50... Ke7 {[%clk 0:01:53.2]}
51. Qb7+ {[%clk 0:00:20.4]} 51... Ke6 {[%clk 0:01:53.6]} 52. Qb6+ {[%clk
0:00:20]} 52... Ke7 {[%clk 0:01:54.5]} 53. Qb7+ {[%clk 0:00:21.2]} 53... Ke6
{[%clk 0:01:55.8]} 54. Qc6+ {[%clk 0:00:22.3]} 54... Ke7 {[%clk 0:01:57.2]} 55.
Qc7+ {[%clk 0:00:23.3]} 55... Ke6 {[%clk 0:01:58.6]} 56. Qg3 {[%clk 0:00:24.5]}
56... Qf5 {[%clk 0:01:52.2]} 57. Qe3+ {[%clk 0:00:25]} 57... Kd6 {[%clk
0:01:50.3]} 58. Qd4+ {[%clk 0:00:25.6]} 58... Kc6 {[%clk 0:01:51.6]} 59. c5
{[%clk 0:00:26.6]} 59... Qxc5 {[%clk 0:01:50]} 60. Qxc5+ {[%clk 0:00:24]} 60...
Kxc5 {[%clk 0:01:51.9]} 61. Kg3 {[%clk 0:00:25.5]} 61... Kd5 {[%clk 0:01:53.5]}
62. Kf4 {[%clk 0:00:26.8]} 62... Ke6 {[%clk 0:01:55.4]} 63. Kg5 {[%clk
0:00:28.7]} 63... Kf7 {[%clk 0:01:56.9]} 64. Kh6 {[%clk 0:00:29.8]} 64... Kf6
{[%clk 0:01:53.7]} 65. g3 {[%clk 0:00:17.1]} 65... Kf5 {[%clk 0:01:46.7]} 66.
Kg7 {[%clk 0:00:10.8]} 66... Kg5 {[%clk 0:01:37]} 67. h4+ {[%clk 0:00:10]} 67...
Kf5 {[%clk 0:01:38.1]} 68. Kh6 {[%clk 0:00:06.4]} 68... Kf6 {[%clk 0:01:39.4]}
69. Kh7 {[%clk 0:00:07.4]} 69... Kf5 {[%clk 0:01:40.5]} 70. Kh6 {[%clk
0:00:08.5]} 70... Kf6 {[%clk 0:01:41.8]} 71. Kh7 {[%clk 0:00:09.8]} 71... Kf7
{[%clk 0:01:43.3]} 72. Kh6 {[%clk 0:00:10.8]} 72... Kf6 {[%clk 0:01:44.8]} 73.
Kh7 {[%clk 0:00:11.5]} 73... Kf5 {[%clk 0:01:46.4]} 74. Kg7 {[%clk 0:00:11.7]}
74... g5 {[%clk 0:01:47.3]} 75. hxg5 {[%clk 0:00:11.3]} 75... Kxg5 {[%clk
0:01:49.2]} 76. Kh7 {[%clk 0:00:12.6]} 76... Kf6 {[%clk 0:00:54.8]} 77. Kh6
{[%clk 0:00:12.2]} 77... h4 {[%clk 0:00:55.6]} 78. gxh4 {[%clk 0:00:13.2]} 78...
Kf7 {[%clk 0:00:56.8]} 79. Kg5 {[%clk 0:00:13.9]} 79... Kg7 {[%clk 0:00:58]} 80.
h5 {[%clk 0:00:15]} 80... Kh7 {[%clk 0:00:59.9]} 81. h6 {[%clk 0:00:15.9]} 81...
Kh8 {[%clk 0:01:01.8]} 82. Kg6 {[%clk 0:00:10.6]} 82... Kg8 {[%clk 0:01:03.7]}
83. Kg5 {[%clk 0:00:11.9]} 83... Kh8 {[%clk 0:01:05.6]} 84. Kh5 {[%clk
0:00:13.4]} 84... Kh7 {[%clk 0:01:06.7]} 85. Kg5 {[%clk 0:00:14.1]} 85... Kh8
{[%clk 0:01:08.6]} 86. Kg6 {[%clk 0:00:15.4]} 86... Kg8 {[%clk 0:01:09.8]} 87.
Kg5 {[%clk 0:00:11.3]} 87... Kh8 {[%clk 0:01:11.7]} 88. Kh5 {[%clk 0:00:13.1]}
88... Kh7 {[%clk 0:01:13]} 89. Kg5 {[%clk 0:00:14.1]} 89... Kh8 {[%clk
0:01:14.3]} 1/2-1/2

[Event "*** Titled Tuesday Blitz"]
[Site "Chess.com"]
[Date "2018.12.04"]
[Round "4"]
[White "SmoothAsAHedgehog"]
[Black "SantoBlue"]
[Result "0-1"]
[WhiteElo "2555"]
[BlackElo "2720"]
[TimeControl "180+2"]
[EndTime "13:53:05 PST"]
[Termination "SantoBlue won by resignation"]

1. Nf3 {[%clk 0:02:59.3]} 1... Nf6 {[%clk 0:02:59.8]} 2. c4 {[%clk 0:02:59.2]}
2... e6 {[%clk 0:02:59.1]} 3. g3 {[%clk 0:03:00]} 3... d5 {[%clk 0:02:59.4]} 4.
Bg2 {[%clk 0:03:00.8]} 4... Be7 {[%clk 0:03:00.1]} 5. b3 {[%clk 0:03:00]} 5...
O-O {[%clk 0:02:59.2]} 6. Bb2 {[%clk 0:03:01.1]} 6... b6 {[%clk 0:02:56.1]} 7.
O-O {[%clk 0:03:00.2]} 7... Bb7 {[%clk 0:02:57.4]} 8. e3 {[%clk 0:02:59.9]} 8...
Nbd7 {[%clk 0:02:58]} 9. Nc3 {[%clk 0:03:00.6]} 9... Ne4 {[%clk 0:02:59.2]} 10.
d3 {[%clk 0:02:59.2]} 10... Nxc3 {[%clk 0:02:58.1]} 11. Bxc3 {[%clk 0:03:01.1]}
11... Bf6 {[%clk 0:02:59.8]} 12. Qc2 {[%clk 0:03:01.4]} 12... c5 {[%clk
0:02:51.9]} 13. Rac1 {[%clk 0:02:53.2]} 13... Rc8 {[%clk 0:02:47.8]} 14. Rfd1
{[%clk 0:02:53.7]} 14... Qe7 {[%clk 0:02:40.9]} 15. Qb2 {[%clk 0:02:49.5]} 15...
Rfd8 {[%clk 0:02:40]} 16. Bxf6 {[%clk 0:02:48.6]} 16... Nxf6 {[%clk 0:02:38.4]}
17. cxd5 {[%clk 0:02:48.4]} 17... Bxd5 {[%clk 0:02:36.8]} 18. d4 {[%clk
0:02:47.3]} 18... Qb7 {[%clk 0:02:36.1]} 19. Ne1 {[%clk 0:02:45.6]} 19... Bxg2
{[%clk 0:02:35.1]} 20. Nxg2 {[%clk 0:02:47.5]} 20... Ne4 {[%clk 0:02:35.8]} 21.
dxc5 {[%clk 0:02:21.5]} 21... Rxd1+ {[%clk 0:02:13.4]} 22. Rxd1 {[%clk
0:02:19.8]} 22... Ng5 {[%clk 0:02:13.8]} 23. h4 {[%clk 0:01:29.2]} 23... Nf3+
{[%clk 0:02:13.6]} 24. Kh1 {[%clk 0:01:25.4]} 24... bxc5 {[%clk 0:02:14.5]} 25.
Qe2 {[%clk 0:01:26]} 25... Qe4 {[%clk 0:01:48.7]} 26. Qc4 {[%clk 0:01:11.9]}
26... Qxc4 {[%clk 0:01:46.3]} 27. bxc4 {[%clk 0:01:13.8]} 27... Ne5 {[%clk
0:01:47.9]} 28. Rc1 {[%clk 0:01:06.7]} 28... Rb8 {[%clk 0:01:48.4]} 29. Ne1
{[%clk 0:00:57.6]} 29... Rb2 {[%clk 0:01:22.9]} 30. f4 {[%clk 0:00:58.3]} 30...
Ng4 {[%clk 0:01:10.7]} 31. Nd3 {[%clk 0:00:58.6]} 31... Rxa2 {[%clk 0:01:02.9]}
32. Nxc5 {[%clk 0:00:59.4]} 32... Nxe3 {[%clk 0:01:04.4]} 33. Nd7 {[%clk
0:00:45.9]} 33... Rd2 {[%clk 0:00:52.1]} 34. Ne5 {[%clk 0:00:42.2]} 34... f6
{[%clk 0:00:53.5]} 35. Nc6 {[%clk 0:00:42.8]} 35... a6 {[%clk 0:00:51]} 36. c5
{[%clk 0:00:43.6]} 36... Kf8 {[%clk 0:00:47.3]} 37. Nb8 {[%clk 0:00:44.4]} 37...
Ke8 {[%clk 0:00:36.1]} 38. c6 {[%clk 0:00:40.1]} 38... Kd8 {[%clk 0:00:36.6]}
39. Nxa6 {[%clk 0:00:37]} 39... Rd6 {[%clk 0:00:26.9]} 40. Nb4 {[%clk
0:00:24.8]} 40... Nd5 {[%clk 0:00:19.7]} 41. Nd3 {[%clk 0:00:12.6]} 41... Kc7
{[%clk 0:00:19.7]} 42. Nf2 {[%clk 0:00:12.6]} 42... Ne7 {[%clk 0:00:17.6]} 43.
Ne4 {[%clk 0:00:11.8]} 43... Rxc6 {[%clk 0:00:05.5]} 44. Ra1 {[%clk 0:00:12.5]}
44... Kb7 {[%clk 0:00:04.7]} 45. Rb1+ {[%clk 0:00:13.6]} 45... Kc7 {[%clk
0:00:05.9]} 46. Ra1 {[%clk 0:00:14.2]} 46... Nc8 {[%clk 0:00:07.5]} 47. Kg2
{[%clk 0:00:14.4]} 47... Kd7 {[%clk 0:00:06.6]} 48. Rb1 {[%clk 0:00:14.9]} 48...
Rc7 {[%clk 0:00:06.9]} 49. h5 {[%clk 0:00:15.3]} 49... Ke7 {[%clk 0:00:08.3]}
50. Re1 {[%clk 0:00:14.7]} 50... Nb6 {[%clk 0:00:07.6]} 51. Re2 {[%clk
0:00:08.8]} 51... Nd5 {[%clk 0:00:07.5]} 52. Kf2 {[%clk 0:00:08.4]} 52... Rc6
{[%clk 0:00:06.5]} 53. Nd2 {[%clk 0:00:09.4]} 53... Kf7 {[%clk 0:00:07.7]} 54.
Nf3 {[%clk 0:00:10.5]} 54... Ne7 {[%clk 0:00:06.8]} 55. Nd4 {[%clk 0:00:11.4]}
55... Rd6 {[%clk 0:00:07.8]} 56. Nf3 {[%clk 0:00:12.3]} 56... Rd5 {[%clk
0:00:06.8]} 57. g4 {[%clk 0:00:13.1]} 57... Nc6 {[%clk 0:00:07.4]} 58. Kg3
{[%clk 0:00:14]} 58... Ke7 {[%clk 0:00:05.8]} 59. Rc2 {[%clk 0:00:14.9]} 59...
Kd6 {[%clk 0:00:06.5]} 60. Re2 {[%clk 0:00:15.9]} 60... Rd3 {[%clk 0:00:07.5]}
61. Re4 {[%clk 0:00:09.5]} 61... Kd5 {[%clk 0:00:06.2]} 62. Ra4 {[%clk
0:00:08.1]} 62... Nd4 {[%clk 0:00:07.4]} 63. Rxd4+ {[%clk 0:00:04.4]} 63... Rxd4
{[%clk 0:00:09.3]} 64. Nxd4 {[%clk 0:00:06.2]} 64... Kxd4 {[%clk 0:00:11.2]} 65.
g5 {[%clk 0:00:08.1]} 65... f5 {[%clk 0:00:08.7]} 66. Kf3 {[%clk 0:00:08.3]}
66... g6 {[%clk 0:00:07.9]} 67. hxg6 {[%clk 0:00:04.1]} 67... hxg6 {[%clk
0:00:09.8]} 68. Kf2 {[%clk 0:00:05]} 68... Ke4 {[%clk 0:00:10.9]} 69. Kg3 {[%clk
0:00:06.5]} 0-1

[Event "*** Titled Tuesday Blitz"]
[Site "Chess.com"]
[Date "2018.12.04"]
[Round "4"]
[White "VincentBlom"]
[Black "yildirim2018"]
[Result "1-0"]
[WhiteElo "2507"]
[BlackElo "2440"]
[TimeControl "180+2"]
[EndTime "13:54:04 PST"]
[Termination "VincentBlom won on time"]

1. d4 {[%clk 0:03:01.9]} 1... Nf6 {[%clk 0:03:00.7]} 2. Bg5 {[%clk 0:03:02.3]}
2... d5 {[%clk 0:03:01.3]} 3. Bxf6 {[%clk 0:03:02.4]} 3... gxf6 {[%clk
0:03:03.2]} 4. Nf3 {[%clk 0:03:03.6]} 4... c5 {[%clk 0:03:04.3]} 5. c3 {[%clk
0:03:04.4]} 5... Nc6 {[%clk 0:03:05.6]} 6. e3 {[%clk 0:03:05.8]} 6... e5 {[%clk
0:03:06.4]} 7. g3 {[%clk 0:03:06.8]} 7... e4 {[%clk 0:03:07.4]} 8. Nh4 {[%clk
0:03:07.3]} 8... cxd4 {[%clk 0:03:05.4]} 9. cxd4 {[%clk 0:03:06.9]} 9... Qb6
{[%clk 0:03:04.9]} 10. Qd2 {[%clk 0:03:07.7]} 10... Ne7 {[%clk 0:03:04.6]} 11.
Nc3 {[%clk 0:03:07.2]} 11... Be6 {[%clk 0:03:05.2]} 12. Bb5+ {[%clk 0:03:05]}
12... Nc6 {[%clk 0:03:05.8]} 13. Ng2 {[%clk 0:02:56]} 13... h5 {[%clk
0:03:05.9]} 14. Nf4 {[%clk 0:02:57.1]} 14... Rd8 {[%clk 0:03:05.5]} 15. h4
{[%clk 0:02:53.6]} 15... a6 {[%clk 0:03:03]} 16. Be2 {[%clk 0:02:54.2]} 16...
Bh6 {[%clk 0:02:56.4]} 17. Nxe6 {[%clk 0:02:53.8]} 17... fxe6 {[%clk 0:02:57.2]}
18. Bxh5+ {[%clk 0:02:55.3]} 18... Ke7 {[%clk 0:02:59.1]} 19. Be2 {[%clk
0:02:55.1]} 19... Rdg8 {[%clk 0:02:56.3]} 20. Na4 {[%clk 0:02:53.1]} 20... Qa7
{[%clk 0:02:54.7]} 21. Qc3 {[%clk 0:02:52.9]} 21... Kf7 {[%clk 0:02:50.4]} 22.
Qc5 {[%clk 0:02:50.8]} 22... Qb8 {[%clk 0:02:51.4]} 23. Nb6 {[%clk 0:02:39.5]}
23... Rd8 {[%clk 0:02:50.6]} 24. O-O-O {[%clk 0:02:37.2]} 24... Bf8 {[%clk
0:02:49.1]} 25. Qc3 {[%clk 0:02:28.9]} 25... Qa7 {[%clk 0:02:46]} 26. Na4 {[%clk
0:02:29]} 26... Rc8 {[%clk 0:02:45.9]} 27. Kb1 {[%clk 0:02:29.2]} 27... b5
{[%clk 0:02:36.5]} 28. Nc5 {[%clk 0:02:30]} 28... Ne5 {[%clk 0:02:34.5]} 29.
dxe5 {[%clk 0:02:00.8]} 29... Qxc5 {[%clk 0:02:30.4]} 30. Qxc5 {[%clk
0:01:58.8]} 30... Rxc5 {[%clk 0:02:31.3]} 31. exf6 {[%clk 0:01:56.1]} 31... Kxf6
{[%clk 0:02:31.6]} 32. g4 {[%clk 0:01:57.7]} 32... Bd6 {[%clk 0:02:29.4]} 33.
g5+ {[%clk 0:01:57.8]} 33... Kf5 {[%clk 0:02:25.2]} 34. Rdg1 {[%clk 0:01:57.2]}
34... Ke5 {[%clk 0:02:17.6]} 35. h5 {[%clk 0:01:55.3]} 35... Be7 {[%clk
0:02:18.5]} 36. h6 {[%clk 0:01:53.9]} 36... Bf8 {[%clk 0:02:15.8]} 37. g6 {[%clk
0:01:52.5]} 37... Bxh6 {[%clk 0:02:13.6]} 38. Rxh6 {[%clk 0:01:52.8]} 38... Rxh6
{[%clk 0:02:14.2]} 39. g7 {[%clk 0:01:54.2]} 39... Rc8 {[%clk 0:02:14.5]} 40.
g8=Q {[%clk 0:01:55.5]} 40... Rxg8 {[%clk 0:02:15.5]} 41. Rxg8 {[%clk
0:01:56.9]} 41... Rh2 {[%clk 0:02:17.4]} 42. Rf8 {[%clk 0:01:57.7]} 42... Kd6
{[%clk 0:02:15.3]} 43. Bd1 {[%clk 0:01:57]} 43... Ke7 {[%clk 0:02:15.9]} 44. Rf4
{[%clk 0:01:57.9]} 44... e5 {[%clk 0:02:17.3]} 45. Rf5 {[%clk 0:01:57.9]} 45...
Ke6 {[%clk 0:02:18.5]} 46. Bg4 {[%clk 0:01:57.8]} 46... Rg2 {[%clk 0:02:15.6]}
47. Bh3 {[%clk 0:01:42.9]} 47... Rh2 {[%clk 0:02:12.7]} 48. Rh5+ {[%clk
0:01:41.4]} 48... Kd6 {[%clk 0:02:12.2]} 49. b4 {[%clk 0:01:09.1]} 49... Rxf2
{[%clk 0:02:12]} 50. Rh6+ {[%clk 0:01:09.5]} 50... Kc7 {[%clk 0:02:13.3]} 51.
Bg4 {[%clk 0:00:44.2]} 51... d4 {[%clk 0:02:12.4]} 52. Rh3 {[%clk 0:00:44.5]}
52... d3 {[%clk 0:02:10.2]} 53. Bd1 {[%clk 0:00:42.2]} 53... Rf1 {[%clk
0:01:59.6]} 54. Kc1 {[%clk 0:00:42.7]} 54... Kd6 {[%clk 0:01:58.1]} 55. Kd2
{[%clk 0:00:17.4]} 55... Ke6 {[%clk 0:01:54.9]} 56. Rh6+ {[%clk 0:00:16.7]}
56... Kf5 {[%clk 0:01:56.1]} 57. Rxa6 {[%clk 0:00:17.7]} 57... Rf2+ {[%clk
0:01:57.3]} 58. Ke1 {[%clk 0:00:19]} 58... Rb2 {[%clk 0:01:53.4]} 59. a3 {[%clk
0:00:17.9]} 59... Ra2 {[%clk 0:01:53.9]} 60. Ra5 {[%clk 0:00:18.4]} 60... Kf6
{[%clk 0:01:53]} 61. Rxb5 {[%clk 0:00:19.1]} 61... Rxa3 {[%clk 0:01:54.4]} 62.
Rb6+ {[%clk 0:00:21]} 62... Kg5 {[%clk 0:01:53.9]} 63. Rb8 {[%clk 0:00:22.3]}
63... Ra1 {[%clk 0:01:54.6]} 64. b5 {[%clk 0:00:23.1]} 64... Rb1 {[%clk
0:01:56]} 65. b6 {[%clk 0:00:24.1]} 65... Rb2 {[%clk 0:01:57.4]} 66. Kf1 {[%clk
0:00:23.2]} 66... Rb1 {[%clk 0:01:57.5]} 67. Ke1 {[%clk 0:00:24.4]} 67... Rb2
{[%clk 0:01:57.8]} 68. Rg8+ {[%clk 0:00:24.9]} 68... Kh4 {[%clk 0:01:57.4]} 69.
Rg4+ {[%clk 0:00:24.7]} 69... Kh3 {[%clk 0:01:58.2]} 70. Rxe4 {[%clk 0:00:24.8]}
70... Rb5 {[%clk 0:01:58.1]} 71. Rg4 {[%clk 0:00:21]} 71... Rxb6 {[%clk
0:01:57]} 72. Rg5 {[%clk 0:00:22.4]} 72... e4 {[%clk 0:01:57]} 73. Rg4 {[%clk
0:00:21.2]} 73... Rb4 {[%clk 0:01:57.7]} 74. Rg1 {[%clk 0:00:22.4]} 74... Kh2
{[%clk 0:01:58.2]} 75. Rg4 {[%clk 0:00:23.4]} 75... Kh3 {[%clk 0:01:58.8]} 76.
Rg8 {[%clk 0:00:23.7]} 76... Kh4 {[%clk 0:01:55.1]} 77. Kf2 {[%clk 0:00:22.9]}
77... Rb2+ {[%clk 0:01:55.2]} 78. Ke1 {[%clk 0:00:23.9]} 78... Rb4 {[%clk
0:01:56.2]} 79. Rg7 {[%clk 0:00:24.4]} 79... Kh3 {[%clk 0:01:55.2]} 80. Rg8
{[%clk 0:00:25.7]} 80... Kh4 {[%clk 0:01:56.1]} 81. Ra8 {[%clk 0:00:27.3]} 81...
Kg3 {[%clk 0:01:56.3]} 82. Ra4 {[%clk 0:00:28.1]} 82... Rxa4 {[%clk 0:01:55.1]}
83. Bxa4 {[%clk 0:00:29.1]} 83... Kf3 {[%clk 0:01:57]} 84. Kd2 {[%clk
0:00:30.8]} 84... Kg3 {[%clk 0:01:57.1]} 85. Bc6 {[%clk 0:00:32.3]} 85... Kf3
{[%clk 0:01:57.1]} 86. Bd5 {[%clk 0:00:33.7]} 1-0